[Event "*** Titled Tuesday Blitz"]
[Site "Chess.com"]
[Date "2020.11.10"]
[Round "3"]
[White "hansen"]
[Black "PlotnikovPavel"]
[Result "1-0"]
[WhiteElo "2898"]
[BlackElo "2464"]
[TimeControl "180+1"]
[EndTime "10:30:39 PST"]
[Termination "hansen won by checkmate"]

1. e4 {[%clk 0:03:00.9]} 1... e5 {[%clk 0:02:57.5]} 2. Nf3 {[%clk 0:03:00]} 2...
Nc6 {[%clk 0:02:56.8]} 3. Bb5 {[%clk 0:02:59.9]} 3... a6 {[%clk 0:02:56.3]} 4.
Ba4 {[%clk 0:03:00.1]} 4... Nf6 {[%clk 0:02:56.4]} 5. O-O {[%clk 0:03:00.3]}
5... Nxe4 {[%clk 0:02:56]} 6. d4 {[%clk 0:02:58.5]} 6... b5 {[%clk 0:02:55.7]}
7. Bb3 {[%clk 0:02:59.2]} 7... d5 {[%clk 0:02:55.6]} 8. dxe5 {[%clk 0:02:59.9]}
8... Be6 {[%clk 0:02:55.6]} 9. Nbd2 {[%clk 0:02:57.9]} 9... Be7 {[%clk
0:02:54.8]} 10. c3 {[%clk 0:02:57.3]} 10... O-O {[%clk 0:02:54.4]} 11. Re1
{[%clk 0:02:47.7]} 11... Nc5 {[%clk 0:02:49.8]} 12. Bc2 {[%clk 0:02:47.6]} 12...
d4 {[%clk 0:02:47.8]} 13. Nb3 {[%clk 0:02:43.6]} 13... dxc3 {[%clk 0:02:41.1]}
14. bxc3 {[%clk 0:02:38.8]} 14... Bg4 {[%clk 0:02:29.1]} 15. Nbd4 {[%clk
0:02:35.9]} 15... Nxd4 {[%clk 0:02:25.6]} 16. cxd4 {[%clk 0:02:36]} 16... Ne6
{[%clk 0:02:25.3]} 17. d5 {[%clk 0:02:36.4]} 17... Ng5 {[%clk 0:02:23.5]} 18.
Bxg5 {[%clk 0:02:35.5]} 18... Bxg5 {[%clk 0:02:23.4]} 19. Qd3 {[%clk 0:02:33.5]}
19... g6 {[%clk 0:02:21.5]} 20. Nxg5 {[%clk 0:02:32.6]} 20... Qxg5 {[%clk
0:02:22.4]} 21. Qc3 {[%clk 0:02:30.9]} 21... Rad8 {[%clk 0:02:17.3]} 22. Bb3
{[%clk 0:02:30.6]} 22... Rd7 {[%clk 0:02:09.9]} 23. Qg3 {[%clk 0:02:13.8]} 23...
Qh5 {[%clk 0:01:49.5]} 24. Rac1 {[%clk 0:02:09]} 24... Rfd8 {[%clk 0:01:42.5]}
25. e6 {[%clk 0:02:05.6]} 25... fxe6 {[%clk 0:01:34.5]} 26. dxe6 {[%clk
0:02:02.4]} 26... Re7 {[%clk 0:01:33.4]} 27. Rxc7 {[%clk 0:01:59.8]} 27... Rde8
{[%clk 0:01:23.9]} 28. Rxe7 {[%clk 0:01:55.3]} 28... Rxe7 {[%clk 0:01:24.8]} 29.
h3 {[%clk 0:01:21.4]} 29... Bf5 {[%clk 0:01:22.2]} 30. Qb8+ {[%clk 0:01:21.1]}
30... Kg7 {[%clk 0:01:19.6]} 31. Qe5+ {[%clk 0:01:20.4]} 31... Kh6 {[%clk
0:01:17]} 32. Qf6 {[%clk 0:01:15.5]} 32... Qg5 {[%clk 0:01:02.6]} 33. Qf8+
{[%clk 0:01:15.5]} 33... Kh5 {[%clk 0:01:01.2]} 34. Bd1+ {[%clk 0:01:14.6]}
34... Kh4 {[%clk 0:01:00.3]} 35. Kh2 {[%clk 0:01:05.9]} 35... Qd2 {[%clk
0:00:14.7]} 36. g3+ {[%clk 0:01:03.7]} 36... Kg5 {[%clk 0:00:15.2]} 37. h4#
{[%clk 0:01:04.2]} 1-0

[Event "*** Titled Tuesday Blitz"]
[Site "Chess.com"]
[Date "2020.11.10"]
[Round "3"]
[White "MVM2008"]
[Black "Qvalda"]
[Result "0-1"]
[WhiteElo "2182"]
[BlackElo "2409"]
[TimeControl "180+1"]
[EndTime "10:30:39 PST"]
[Termination "Qvalda won on time"]

1. e4 {[%clk 0:03:00.9]} 1... c6 {[%clk 0:02:58.6]} 2. d4 {[%clk 0:03:00.6]}
2... d5 {[%clk 0:02:57]} 3. Nc3 {[%clk 0:03:00.9]} 3... dxe4 {[%clk 0:02:56.7]}
4. Nxe4 {[%clk 0:03:01.8]} 4... Bf5 {[%clk 0:02:57]} 5. Ng3 {[%clk 0:03:01.6]}
5... Bg6 {[%clk 0:02:57.5]} 6. Nf3 {[%clk 0:03:01.8]} 6... Nd7 {[%clk
0:02:57.4]} 7. Bd3 {[%clk 0:03:02]} 7... e6 {[%clk 0:02:55.5]} 8. O-O {[%clk
0:03:00.2]} 8... Bd6 {[%clk 0:02:55.7]} 9. c3 {[%clk 0:02:59.1]} 9... Ngf6
{[%clk 0:02:55.4]} 10. Re1 {[%clk 0:02:58.6]} 10... O-O {[%clk 0:02:55.2]} 11.
Bxg6 {[%clk 0:02:58.4]} 11... hxg6 {[%clk 0:02:55.1]} 12. Ne4 {[%clk 0:02:59]}
12... Nxe4 {[%clk 0:02:54.7]} 13. Rxe4 {[%clk 0:02:59.9]} 13... Nf6 {[%clk
0:02:54.8]} 14. Re1 {[%clk 0:02:52.8]} 14... Qc7 {[%clk 0:02:53.3]} 15. Bg5
{[%clk 0:02:49.2]} 15... c5 {[%clk 0:02:51.6]} 16. dxc5 {[%clk 0:02:43.7]} 16...
Qxc5 {[%clk 0:02:48.3]} 17. Qd4 {[%clk 0:02:36.6]} 17... Qxd4 {[%clk 0:02:39.7]}
18. Nxd4 {[%clk 0:02:37.5]} 18... a6 {[%clk 0:02:38.9]} 19. Rad1 {[%clk
0:02:34.2]} 19... Rfd8 {[%clk 0:02:36.8]} 20. Rd2 {[%clk 0:02:12.4]} 20... Bc5
{[%clk 0:02:31.6]} 21. Red1 {[%clk 0:02:02.5]} 21... Ne4 {[%clk 0:02:29.9]} 22.
Bxd8 {[%clk 0:02:01.6]} 22... Nxd2 {[%clk 0:02:30]} 23. Nxe6 {[%clk 0:01:52]}
23... Ne4 {[%clk 0:02:11.6]} 24. Nxc5 {[%clk 0:01:50.8]} 24... Nxc5 {[%clk
0:02:08.3]} 25. Bb6 {[%clk 0:01:48.7]} 25... Na4 {[%clk 0:02:07.3]} 26. Be3
{[%clk 0:01:26.1]} 26... Nxb2 {[%clk 0:01:55.8]} 27. Rb1 {[%clk 0:01:25.7]}
27... Na4 {[%clk 0:01:55.7]} 28. Rxb7 {[%clk 0:00:48.5]} 28... Nxc3 {[%clk
0:01:55.4]} 29. Rb2 {[%clk 0:00:43.5]} 29... Nd5 {[%clk 0:01:51]} 30. g3 {[%clk
0:00:28]} 30... f5 {[%clk 0:01:49]} 31. Kg2 {[%clk 0:00:25.9]} 31... Rc8 {[%clk
0:01:45.9]} 32. Bd4 {[%clk 0:00:22.2]} 32... Rc4 {[%clk 0:01:43.2]} 33. Be5
{[%clk 0:00:16.5]} 33... Re4 {[%clk 0:01:40.3]} 34. f4 {[%clk 0:00:16.2]} 34...
Ne3+ {[%clk 0:01:39.4]} 35. Kh3 {[%clk 0:00:11]} 35... Ng4 {[%clk 0:01:37.4]}
36. Rb8+ {[%clk 0:00:10.6]} 36... Kh7 {[%clk 0:01:37.2]} 37. Rb7 {[%clk
0:00:02.8]} 37... Re2 {[%clk 0:01:27.7]} 38. Rxg7+ {[%clk 0:00:02.6]} 38... Kh6
{[%clk 0:01:28.2]} 0-1

[Event "*** Titled Tuesday Blitz"]
[Site "Chess.com"]
[Date "2020.11.10"]
[Round "3"]
[White "CHESSMASTER759"]
[Black "Jospem"]
[Result "0-1"]
[WhiteElo "2651"]
[BlackElo "2914"]
[TimeControl "180+1"]
[EndTime "10:30:42 PST"]
[Termination "Jospem won by resignation"]

1. e4 {[%clk 0:03:00.9]} 1... e5 {[%clk 0:02:58.5]} 2. Nf3 {[%clk 0:03:00]} 2...
Nc6 {[%clk 0:02:58.9]} 3. Bc4 {[%clk 0:02:58.3]} 3... Bc5 {[%clk 0:02:58.4]} 4.
O-O {[%clk 0:02:57.1]} 4... Nf6 {[%clk 0:02:57.4]} 5. d3 {[%clk 0:02:56.9]} 5...
d6 {[%clk 0:02:55.8]} 6. c3 {[%clk 0:02:56.9]} 6... a5 {[%clk 0:02:55.6]} 7. a4
{[%clk 0:02:52.6]} 7... O-O {[%clk 0:02:55.7]} 8. Re1 {[%clk 0:02:52.3]} 8... h6
{[%clk 0:02:54.2]} 9. h3 {[%clk 0:02:52.4]} 9... Be6 {[%clk 0:02:54]} 10. Nbd2
{[%clk 0:02:48.9]} 10... Re8 {[%clk 0:02:45.1]} 11. Bb3 {[%clk 0:02:42.5]} 11...
d5 {[%clk 0:02:23.4]} 12. Qe2 {[%clk 0:02:23.8]} 12... Qd7 {[%clk 0:02:03.8]}
13. Bc2 {[%clk 0:02:18]} 13... Rad8 {[%clk 0:01:59.3]} 14. Nf1 {[%clk
0:02:17.9]} 14... d4 {[%clk 0:01:57.2]} 15. Bd2 {[%clk 0:02:15]} 15... Bf8
{[%clk 0:01:25.5]} 16. Ng3 {[%clk 0:02:11.5]} 16... Qc8 {[%clk 0:01:15.3]} 17.
Nh4 {[%clk 0:02:05.2]} 17... g6 {[%clk 0:01:10.8]} 18. Nf3 {[%clk 0:02:00.7]}
18... Nd7 {[%clk 0:01:06.6]} 19. cxd4 {[%clk 0:01:57.8]} 19... exd4 {[%clk
0:01:02.4]} 20. Nh4 {[%clk 0:01:56.9]} 20... Nc5 {[%clk 0:00:48]} 21. f4 {[%clk
0:01:55.5]} 21... Bb3 {[%clk 0:00:46.7]} 22. Bb1 {[%clk 0:01:52.7]} 22... Nb4
{[%clk 0:00:31.9]} 23. Bxb4 {[%clk 0:01:46.2]} 23... axb4 {[%clk 0:00:31.3]} 24.
f5 {[%clk 0:01:46.7]} 24... g5 {[%clk 0:00:30]} 25. Nf3 {[%clk 0:01:45.1]} 25...
Nd7 {[%clk 0:00:18.2]} 26. Qd2 {[%clk 0:01:40.2]} 26... Ne5 {[%clk 0:00:07.8]}
27. Nxg5 {[%clk 0:01:20.2]} 27... hxg5 {[%clk 0:00:08.7]} 28. Qxg5+ {[%clk
0:01:20.5]} 28... Kh7 {[%clk 0:00:08.8]} 29. Qh4+ {[%clk 0:01:20]} 29... Bh6
{[%clk 0:00:07.9]} 30. f6 {[%clk 0:01:16.4]} 30... Rg8 {[%clk 0:00:07.1]} 31.
Rf1 {[%clk 0:01:13.6]} 31... Be6 {[%clk 0:00:05.6]} 32. Nf5 {[%clk 0:01:11.2]}
32... Bxf5 {[%clk 0:00:05.8]} 33. Rxf5 {[%clk 0:01:10.7]} 33... Qxf5 {[%clk
0:00:05.3]} 0-1

[Event "*** Titled Tuesday Blitz"]
[Site "Chess.com"]
[Date "2020.11.10"]
[Round "3"]
[White "djano"]
[Black "Makogon_Natalya"]
[Result "1-0"]
[WhiteElo "2469"]
[BlackElo "1593"]
[TimeControl "180+1"]
[EndTime "10:30:42 PST"]
[Termination "djano won by resignation"]

1. d4 {[%clk 0:03:00.9]} 1... d5 {[%clk 0:02:59.2]} 2. Nf3 {[%clk 0:03:00.9]}
2... c6 {[%clk 0:02:54.6]} 3. Bf4 {[%clk 0:03:01]} 3... e6 {[%clk 0:02:53.7]} 4.
Nbd2 {[%clk 0:02:59.2]} 4... Nf6 {[%clk 0:02:53.8]} 5. e3 {[%clk 0:02:59.3]}
5... Bd6 {[%clk 0:02:53.9]} 6. Ne5 {[%clk 0:02:59.5]} 6... O-O {[%clk
0:02:51.4]} 7. Bd3 {[%clk 0:02:59.4]} 7... c5 {[%clk 0:02:48]} 8. c3 {[%clk
0:02:59.1]} 8... cxd4 {[%clk 0:02:45.8]} 9. exd4 {[%clk 0:02:44.3]} 9... Nc6
{[%clk 0:02:45.8]} 10. Ndf3 {[%clk 0:02:43]} 10... Nxe5 {[%clk 0:02:43.4]} 11.
dxe5 {[%clk 0:02:42]} 11... Nh5 {[%clk 0:02:27.7]} 12. Bxh7+ {[%clk 0:02:10.5]}
12... Kh8 {[%clk 0:02:14.3]} 13. Bg5 {[%clk 0:02:05.6]} 13... Be7 {[%clk
0:02:10.1]} 14. Bxe7 {[%clk 0:02:02.4]} 14... Qxe7 {[%clk 0:02:10.2]} 15. Bc2
{[%clk 0:01:59]} 15... g6 {[%clk 0:02:03.1]} 16. Qd2 {[%clk 0:01:57.5]} 16... f5
{[%clk 0:01:42]} 17. exf6 {[%clk 0:01:52.4]} 17... Rxf6 {[%clk 0:01:36.5]} 18.
Qh6+ {[%clk 0:01:45.9]} 18... Qh7 {[%clk 0:01:36.2]} 19. Qg5 {[%clk 0:01:35.6]}
19... Qf7 {[%clk 0:01:21.6]} 20. Ne5 {[%clk 0:01:32.4]} 20... Qg7 {[%clk
0:01:17.8]} 21. Nxg6+ {[%clk 0:01:29.5]} 21... Rxg6 {[%clk 0:01:00.7]} 22. Bxg6
{[%clk 0:01:28.8]} 22... Nf6 {[%clk 0:01:00.9]} 23. h4 {[%clk 0:01:25]} 23...
Bd7 {[%clk 0:00:59.4]} 24. h5 {[%clk 0:01:24]} 24... Rg8 {[%clk 0:00:50.4]} 25.
O-O-O {[%clk 0:01:21]} 25... Ne4 {[%clk 0:00:40.2]} 26. Qe3 {[%clk 0:01:13.9]}
26... Rf8 {[%clk 0:00:33]} 27. Bxe4 {[%clk 0:01:12.5]} 27... dxe4 {[%clk
0:00:32.6]} 28. h6 {[%clk 0:01:09.7]} 28... Qxg2 {[%clk 0:00:28.1]} 29. Rhg1
{[%clk 0:01:03.4]} 29... Qf3 {[%clk 0:00:27.7]} 30. Qxf3 {[%clk 0:00:57]} 30...
Rxf3 {[%clk 0:00:24.5]} 31. Rxd7 {[%clk 0:00:57.5]} 31... Rxf2 {[%clk
0:00:20.9]} 32. h7 {[%clk 0:00:56.7]} 1-0

[Event "*** Titled Tuesday Blitz"]
[Site "Chess.com"]
[Date "2020.11.10"]
[Round "3"]
[White "Zkid"]
[Black "talman67"]
[Result "1-0"]
[WhiteElo "2764"]
[BlackElo "2536"]
[TimeControl "180+1"]
[EndTime "10:30:43 PST"]
[Termination "Zkid won by resignation"]

1. d4 {[%clk 0:03:00.9]} 1... Nf6 {[%clk 0:02:59.9]} 2. c4 {[%clk 0:03:01]} 2...
e6 {[%clk 0:03:00.2]} 3. Nc3 {[%clk 0:03:01]} 3... Bb4 {[%clk 0:03:00.8]} 4. Qc2
{[%clk 0:03:00.4]} 4... O-O {[%clk 0:03:00.3]} 5. a3 {[%clk 0:03:00.5]} 5...
Bxc3+ {[%clk 0:03:00.2]} 6. Qxc3 {[%clk 0:03:01.4]} 6... d5 {[%clk 0:03:00.9]}
7. Bg5 {[%clk 0:02:49.2]} 7... c5 {[%clk 0:03:00.8]} 8. cxd5 {[%clk 0:02:45.3]}
8... cxd4 {[%clk 0:01:25.1]} 9. Qxd4 {[%clk 0:02:43.7]} 9... Nc6 {[%clk
0:01:22.7]} 10. Qc3 {[%clk 0:02:21.8]} 10... Nxd5 {[%clk 0:01:13.9]} 11. Bxd8
{[%clk 0:02:21.7]} 11... Nxc3 {[%clk 0:01:14.3]} 12. Bh4 {[%clk 0:02:22.3]}
12... Na4 {[%clk 0:01:09.7]} 13. O-O-O {[%clk 0:02:20.4]} 13... e5 {[%clk
0:01:07.8]} 14. e3 {[%clk 0:02:10]} 14... Bf5 {[%clk 0:01:07]} 15. Bd3 {[%clk
0:02:09.7]} 15... Bxd3 {[%clk 0:01:05.5]} 16. Rxd3 {[%clk 0:02:10.6]} 16... f6
{[%clk 0:01:05.5]} 17. Ne2 {[%clk 0:02:06.9]} 17... Rac8 {[%clk 0:01:01.4]} 18.
Kb1 {[%clk 0:02:04.9]} 18... Nc5 {[%clk 0:01:01.3]} 19. Rd5 {[%clk 0:02:01.4]}
19... b6 {[%clk 0:00:59.7]} 20. f3 {[%clk 0:01:57.7]} 20... Rfd8 {[%clk
0:00:57.5]} 21. Nc3 {[%clk 0:01:55.5]} 21... Ne7 {[%clk 0:00:50.2]} 22. Rdd1
{[%clk 0:01:52.4]} 22... Kf7 {[%clk 0:00:48.3]} 23. e4 {[%clk 0:01:48.6]} 23...
Ke6 {[%clk 0:00:46.4]} 24. Bf2 {[%clk 0:01:45.1]} 24... Nd3 {[%clk 0:00:45.9]}
25. Be3 {[%clk 0:01:44.4]} 25... g6 {[%clk 0:00:41.5]} 26. Nb5 {[%clk
0:01:24.9]} 26... a6 {[%clk 0:00:41.5]} 27. Bxb6 {[%clk 0:01:24.8]} 27... axb5
{[%clk 0:00:19.4]} 28. Bxd8 {[%clk 0:01:24.9]} 28... Nf2 {[%clk 0:00:19.9]} 29.
Bxe7 {[%clk 0:01:20.7]} 29... Nxd1 {[%clk 0:00:18.4]} 30. Rxd1 {[%clk
0:01:20.3]} 30... Kxe7 {[%clk 0:00:18.9]} 31. Rd5 {[%clk 0:01:21]} 31... Rb8
{[%clk 0:00:18.4]} 32. Kc2 {[%clk 0:01:18.6]} 32... b4 {[%clk 0:00:17.9]} 33. a4
{[%clk 0:01:18.4]} 33... Ke6 {[%clk 0:00:17.3]} 34. Kb3 {[%clk 0:01:15.8]} 34...
f5 {[%clk 0:00:17]} 35. a5 {[%clk 0:01:15.1]} 35... Rf8 {[%clk 0:00:17.7]} 36.
a6 {[%clk 0:01:14.6]} 36... fxe4 {[%clk 0:00:18.6]} 37. fxe4 {[%clk 0:01:15.3]}
37... Ra8 {[%clk 0:00:18.8]} 38. Ra5 {[%clk 0:01:14.8]} 38... Kd6 {[%clk
0:00:19.4]} 39. a7 {[%clk 0:01:15.2]} 39... Kc6 {[%clk 0:00:20.1]} 40. Kxb4
{[%clk 0:01:15.7]} 40... Kb6 {[%clk 0:00:20.5]} 41. Rxe5 {[%clk 0:01:14.4]}
41... Rxa7 {[%clk 0:00:19.7]} 42. Re6+ {[%clk 0:01:14.6]} 1-0

[Event "*** Titled Tuesday Blitz"]
[Site "Chess.com"]
[Date "2020.11.10"]
[Round "3"]
[White "kasparicy"]
[Black "thedjoker98"]
[Result "0-1"]
[WhiteElo "2380"]
[BlackElo "2581"]
[TimeControl "180+1"]
[EndTime "10:30:45 PST"]
[Termination "thedjoker98 won by resignation"]

1. e3 {[%clk 0:02:13.9]} 1... d5 {[%clk 0:02:59.2]} 2. Nf3 {[%clk 0:02:09.5]}
2... Nf6 {[%clk 0:02:59.3]} 3. g3 {[%clk 0:02:09.6]} 3... Bg4 {[%clk 0:02:58.3]}
4. Bg2 {[%clk 0:02:09.8]} 4... Nbd7 {[%clk 0:02:58]} 5. h3 {[%clk 0:02:10.3]}
5... Bxf3 {[%clk 0:02:55]} 6. Qxf3 {[%clk 0:02:09.5]} 6... e5 {[%clk 0:02:55.9]}
7. d4 {[%clk 0:02:08.2]} 7... e4 {[%clk 0:02:55.7]} 8. Qe2 {[%clk 0:02:08.1]}
8... Bd6 {[%clk 0:02:54.5]} 9. c4 {[%clk 0:02:08.2]} 9... c6 {[%clk 0:02:54.9]}
10. Nc3 {[%clk 0:02:06.5]} 10... O-O {[%clk 0:02:53.9]} 11. O-O {[%clk
0:02:03.8]} 11... Qe7 {[%clk 0:02:53.2]} 12. Kh2 {[%clk 0:02:03.7]} 12... Qe6
{[%clk 0:02:51.9]} 13. b3 {[%clk 0:02:02.7]} 13... Ne8 {[%clk 0:02:44.9]} 14. c5
{[%clk 0:01:59.8]} 14... Bc7 {[%clk 0:02:44.5]} 15. b4 {[%clk 0:02:00.3]} 15...
b6 {[%clk 0:02:33.6]} 16. Bd2 {[%clk 0:01:59.4]} 16... a5 {[%clk 0:02:31.2]} 17.
a3 {[%clk 0:01:51.1]} 17... b5 {[%clk 0:02:28]} 18. Rfb1 {[%clk 0:01:48.1]}
18... a4 {[%clk 0:02:24.9]} 19. f4 {[%clk 0:01:40.9]} 19... exf3 {[%clk
0:02:24]} 20. Qxf3 {[%clk 0:01:41.4]} 20... f5 {[%clk 0:02:23]} 21. Rf1 {[%clk
0:01:40.3]} 21... g6 {[%clk 0:02:22.7]} 22. Rae1 {[%clk 0:01:40.7]} 22... Nef6
{[%clk 0:02:21.3]} 23. Kg1 {[%clk 0:01:32.8]} 23... Rae8 {[%clk 0:02:19.5]} 24.
Re2 {[%clk 0:01:13.8]} 24... Nh5 {[%clk 0:02:16.3]} 25. Be1 {[%clk 0:01:13]}
25... Ndf6 {[%clk 0:02:10.9]} 26. Kh1 {[%clk 0:00:41]} 26... Ne4 {[%clk
0:02:05.8]} 27. Nxe4 {[%clk 0:00:38.3]} 27... dxe4 {[%clk 0:01:56.1]} 28. Qf2
{[%clk 0:00:38.3]} 28... Nxg3+ {[%clk 0:01:55.9]} 29. Kg1 {[%clk 0:00:34.1]}
29... f4 {[%clk 0:01:50.8]} 30. exf4 {[%clk 0:00:33.1]} 30... Rxf4 {[%clk
0:01:48.8]} 31. Qe3 {[%clk 0:00:29.4]} 31... Nxf1 {[%clk 0:01:25.3]} 32. Bxf1
{[%clk 0:00:30.3]} 32... Rf3 {[%clk 0:01:24.8]} 33. Qg5 {[%clk 0:00:20.3]} 33...
Rxf1+ {[%clk 0:01:10.9]} 34. Kxf1 {[%clk 0:00:16.9]} 34... Qxh3+ {[%clk
0:01:11.4]} 35. Kg1 {[%clk 0:00:17.6]} 35... Rf8 {[%clk 0:01:07.7]} 36. Qg2
{[%clk 0:00:17.2]} 36... Bh2+ {[%clk 0:01:04.3]} 37. Kh1 {[%clk 0:00:15.6]}
37... Rf1+ {[%clk 0:01:03.7]} 0-1

[Event "*** Titled Tuesday Blitz"]
[Site "Chess.com"]
[Date "2020.11.10"]
[Round "3"]
[White "Nara_Kh"]
[Black "Campelov"]
[Result "1-0"]
[WhiteElo "2345"]
[BlackElo "2148"]
[TimeControl "180+1"]
[EndTime "10:30:45 PST"]
[Termination "Nara_Kh won by resignation"]

1. e4 {[%clk 0:03:00.9]} 1... c5 {[%clk 0:02:59.4]} 2. Nf3 {[%clk 0:03:00.3]}
2... e6 {[%clk 0:02:59.7]} 3. d4 {[%clk 0:02:58.8]} 3... cxd4 {[%clk 0:03:00.6]}
4. Nxd4 {[%clk 0:02:59]} 4... Nc6 {[%clk 0:03:01.2]} 5. Nc3 {[%clk 0:02:58.4]}
5... Qc7 {[%clk 0:02:59.8]} 6. Be3 {[%clk 0:02:58]} 6... Nf6 {[%clk 0:02:57.9]}
7. Be2 {[%clk 0:02:44.4]} 7... a6 {[%clk 0:02:56.9]} 8. O-O {[%clk 0:02:43.1]}
8... Bb4 {[%clk 0:02:52]} 9. Na4 {[%clk 0:02:40.3]} 9... Be7 {[%clk 0:02:43.4]}
10. Nxc6 {[%clk 0:02:35.8]} 10... bxc6 {[%clk 0:02:44.3]} 11. Nb6 {[%clk
0:02:36.2]} 11... Rb8 {[%clk 0:02:43.9]} 12. Nxc8 {[%clk 0:02:35.7]} 12... Qxc8
{[%clk 0:02:44.8]} 13. e5 {[%clk 0:02:28.2]} 13... Nd5 {[%clk 0:02:43.8]} 14.
Bd4 {[%clk 0:02:28.5]} 14... c5 {[%clk 0:02:42.6]} 15. c4 {[%clk 0:02:28.6]}
15... cxd4 {[%clk 0:02:43]} 16. cxd5 {[%clk 0:02:28.9]} 16... Qc5 {[%clk
0:02:42.2]} 17. dxe6 {[%clk 0:02:09.2]} 17... dxe6 {[%clk 0:02:38.3]} 18. Qa4+
{[%clk 0:02:03.8]} 18... Kf8 {[%clk 0:02:27.2]} 19. Rac1 {[%clk 0:01:56.2]}
19... Qxe5 {[%clk 0:02:25]} 20. Bxa6 {[%clk 0:01:56.4]} 20... g6 {[%clk
0:02:16.2]} 21. Rfd1 {[%clk 0:01:33.4]} 21... Bf6 {[%clk 0:02:15]} 22. b4 {[%clk
0:01:31]} 22... Kg7 {[%clk 0:02:13.9]} 23. b5 {[%clk 0:01:31.2]} 23... Rhd8
{[%clk 0:02:06.1]} 24. Rd3 {[%clk 0:01:29.9]} 24... Qd6 {[%clk 0:01:58.3]} 25.
Qc4 {[%clk 0:01:25.2]} 25... e5 {[%clk 0:01:56.9]} 26. f3 {[%clk 0:01:23.9]}
26... Bg5 {[%clk 0:01:54.4]} 27. Re1 {[%clk 0:01:23.9]} 27... f5 {[%clk
0:01:48.2]} 28. a4 {[%clk 0:01:22.8]} 28... Bf6 {[%clk 0:01:42.1]} 29. a5 {[%clk
0:01:20.1]} 29... Re8 {[%clk 0:01:41.1]} 30. b6 {[%clk 0:01:00.8]} 30... e4
{[%clk 0:01:40.7]} 31. fxe4 {[%clk 0:00:41.4]} 31... fxe4 {[%clk 0:01:39.9]} 32.
Rdd1 {[%clk 0:00:41.5]} 32... d3 {[%clk 0:01:30.1]} 33. Qc7+ {[%clk 0:00:28.4]}
33... Qe7 {[%clk 0:01:29.1]} 34. Rxe4 {[%clk 0:00:25.6]} 34... Qxc7 {[%clk
0:01:27.9]} 35. bxc7 {[%clk 0:00:25.9]} 35... Rxe4 {[%clk 0:01:10.9]} 36. cxb8=Q
{[%clk 0:00:25.2]} 36... Bd4+ {[%clk 0:01:11.1]} 37. Kf1 {[%clk 0:00:21.7]} 1-0

[Event "*** Titled Tuesday Blitz"]
[Site "Chess.com"]
[Date "2020.11.10"]
[Round "3"]
[White "chito89"]
[Black "hungrycaterpillar4"]
[Result "1/2-1/2"]
[WhiteElo "2850"]
[BlackElo "2625"]
[TimeControl "180+1"]
[EndTime "10:30:48 PST"]
[Termination "Game drawn by repetition"]

1. c4 {[%clk 0:02:59.7]} 1... c6 {[%clk 0:02:59.5]} 2. Nf3 {[%clk 0:02:59.1]}
2... d5 {[%clk 0:02:59.8]} 3. e3 {[%clk 0:02:59.1]} 3... Nf6 {[%clk 0:02:59.9]}
4. Nc3 {[%clk 0:02:58.5]} 4... e6 {[%clk 0:03:00.2]} 5. b3 {[%clk 0:02:57.9]}
5... Bd6 {[%clk 0:02:59.1]} 6. Bb2 {[%clk 0:02:58]} 6... e5 {[%clk 0:02:59.6]}
7. cxd5 {[%clk 0:02:57.5]} 7... cxd5 {[%clk 0:03:00.5]} 8. Nb5 {[%clk
0:02:57.7]} 8... Nc6 {[%clk 0:03:01]} 9. Nxd6+ {[%clk 0:02:56.3]} 9... Qxd6
{[%clk 0:03:01.9]} 10. d4 {[%clk 0:02:56.7]} 10... Ne4 {[%clk 0:02:50.4]} 11.
dxe5 {[%clk 0:02:49.2]} 11... Qb4+ {[%clk 0:02:46.8]} 12. Nd2 {[%clk 0:02:48.5]}
12... Bf5 {[%clk 0:02:34.6]} 13. a3 {[%clk 0:02:47.7]} 13... Qxd2+ {[%clk
0:02:30.2]} 14. Qxd2 {[%clk 0:02:46.4]} 14... Nxd2 {[%clk 0:02:31.1]} 15. Kxd2
{[%clk 0:02:47.1]} 15... Na5 {[%clk 0:02:31.8]} 16. Bb5+ {[%clk 0:02:43.9]}
16... Ke7 {[%clk 0:02:31.6]} 17. Ba4 {[%clk 0:02:39.7]} 17... b5 {[%clk
0:02:27.1]} 18. Bc3 {[%clk 0:02:19.8]} 18... bxa4 {[%clk 0:02:24.9]} 19. Bxa5
{[%clk 0:02:19.8]} 19... axb3 {[%clk 0:02:25.2]} 20. Rac1 {[%clk 0:02:03.9]}
20... Rhc8 {[%clk 0:01:54.7]} 21. Bc3 {[%clk 0:02:03.2]} 21... Rab8 {[%clk
0:01:43.2]} 22. Bb2 {[%clk 0:01:52]} 22... a5 {[%clk 0:01:40]} 23. Rxc8 {[%clk
0:01:50.5]} 23... Rxc8 {[%clk 0:01:40.9]} 24. Rc1 {[%clk 0:01:50.8]} 24... Rxc1
{[%clk 0:01:24.2]} 25. Kxc1 {[%clk 0:01:48]} 25... a4 {[%clk 0:01:24.6]} 26. f3
{[%clk 0:01:45.4]} 26... Bd3 {[%clk 0:01:21.3]} 27. Kd2 {[%clk 0:01:45.1]} 27...
Bf1 {[%clk 0:01:21]} 28. g3 {[%clk 0:01:44.9]} 28... h5 {[%clk 0:01:12.4]} 29.
Ke1 {[%clk 0:01:45]} 29... Bb5 {[%clk 0:01:11]} 30. Kd2 {[%clk 0:01:32.1]} 30...
g6 {[%clk 0:01:10.8]} 31. e4 {[%clk 0:01:28.9]} 31... dxe4 {[%clk 0:01:10.4]}
32. fxe4 {[%clk 0:01:29.8]} 32... Bc6 {[%clk 0:00:59.4]} 33. Ke3 {[%clk
0:01:29.5]} 33... Kd7 {[%clk 0:00:52]} 34. Kd4 {[%clk 0:01:27.2]} 34... Ke6
{[%clk 0:00:49.4]} 35. h4 {[%clk 0:01:26.4]} 35... Ba8 {[%clk 0:00:48.9]} 36.
Bc3 {[%clk 0:01:26.3]} 36... Bb7 {[%clk 0:00:44.2]} 37. Bb2 {[%clk 0:01:25.8]}
37... Kd7 {[%clk 0:00:44.3]} 38. Bc3 {[%clk 0:01:25.5]} 38... Kc6 {[%clk
0:00:36.1]} 39. Kc4 {[%clk 0:01:17]} 39... Kd7 {[%clk 0:00:35.2]} 40. Kd4 {[%clk
0:01:13.4]} 40... Ba8 {[%clk 0:00:32.5]} 41. Bb2 {[%clk 0:01:12.3]} 41... Ke6
{[%clk 0:00:32.7]} 42. Bc3 {[%clk 0:01:10.4]} 42... Bb7 {[%clk 0:00:33.1]} 43.
Bb2 {[%clk 0:01:10.4]} 43... Ba8 {[%clk 0:00:33.7]} 1/2-1/2